[Event "Titled Tuesday Blitz May 16 Late 2023"]
[White "Ognean, Mihnea-Ionut"]
[Black "Szente Varga, Fruzsina"]
[WhiteFideId "1232347"]
[BlackFideId "712264"]
[WhiteElo "2215"]
[BlackElo "1994"]
[Result "1-0"]
[Round "08"]
[TimeControl "180+2"]
[Date "2023.05.16"]
[WhiteClock "0:01:21"]
[BlackClock "0:00:17"]

1. d4 {[%clk 0:03:00]}  Nf6 {[%clk 0:02:59]} 2. Nf3 {[%clk 0:03:01]}  g6 {[%clk 0:02:59]} 3. c4 {[%clk 0:02:59]}  Bg7 {[%clk 0:02:59]} 4. Nc3 {[%clk 0:02:59]}  O-O {[%clk 0:02:59]} 5. e4 {[%clk 0:03:00]}  d6 {[%clk 0:02:59]} 6. Be2 {[%clk 0:02:59]}  e5 {[%clk 0:02:59]} 7. d5 {[%clk 0:03:00]}  Nbd7 {[%clk 0:02:58]} 8. Bg5 {[%clk 0:02:45]}  h6 {[%clk 0:02:57]} 9. Be3 {[%clk 0:02:44]}  Ng4 {[%clk 0:02:56]} 10. Bd2 {[%clk 0:02:41]}  f5 {[%clk 0:02:55]} 11. exf5 {[%clk 0:02:36]}  gxf5 {[%clk 0:02:48]} 12. g3 {[%clk 0:02:34]}  e4 {[%clk 0:02:45]} 13. Nh4 {[%clk 0:02:34]}  Nde5 {[%clk 0:02:40]} 14. Ng2 {[%clk 0:02:29]}  e3 {[%clk 0:02:05]} 15. Nxe3 {[%clk 0:02:25]}  Nxf2 {[%clk 0:01:56]} 16. Kxf2 {[%clk 0:02:24]}  f4 {[%clk 0:01:55]} 17. Ke1 {[%clk 0:02:06]}  fxe3 {[%clk 0:01:31]} 18. Bxe3 {[%clk 0:02:07]}  Qe7 {[%clk 0:01:22]} 19. Qd2 {[%clk 0:02:03]}  Bg4 {[%clk 0:01:15]} 20. Rf1 {[%clk 0:01:51]}  Bxe2 {[%clk 0:00:58]} 21. Qxe2 {[%clk 0:01:51]}  Nxc4 {[%clk 0:00:53]} 22. Bf4 {[%clk 0:01:39]}  Qxe2+ {[%clk 0:00:47]} 23. Kxe2 {[%clk 0:01:40]}  Nxb2 {[%clk 0:00:46]} 24. Nb5 {[%clk 0:01:40]}  Rae8+ {[%clk 0:00:45]} 25. Kf3 {[%clk 0:01:38]}  Rf7 {[%clk 0:00:37]} 26. Rac1 {[%clk 0:01:35]}  Ref8 {[%clk 0:00:23]} 27. Rxc7 {[%clk 0:01:33]}  Nd3 {[%clk 0:00:21]} 28. Rxf7 {[%clk 0:01:32]}  Rxf7 {[%clk 0:00:21]} 29. Nxd6 {[%clk 0:01:31]}  Rd7 {[%clk 0:00:21]} 30. Nf5 {[%clk 0:01:23]}  Nxf4 {[%clk 0:00:20]} 31. gxf4 {[%clk 0:01:21]}  Rxd5 {[%clk 0:00:17]} 32. Ne7+ {[%clk 0:01:21]} 1-0


[Site "https://www.chess.com"]

[Event "Titled Tuesday Blitz May 16 Late 2023"]
[White "Ladan, Nicholas"]
[Black "Celestino, Rafael Teixeira"]
[WhiteFideId "30918855"]
[BlackFideId "2108925"]
[WhiteElo "2167"]
[BlackElo "2340"]
[Result "1-0"]
[Round "08"]
[TimeControl "180+2"]
[Date "2023.05.16"]
[WhiteClock "0:01:07"]
[BlackClock "0:01:49"]

1. d4 {[%clk 0:03:00]}  Nf6 {[%clk 0:02:59]} 2. Nf3 {[%clk 0:03:01]}  e6 {[%clk 0:03:00]} 3. g3 {[%clk 0:03:00]}  d5 {[%clk 0:03:01]} 4. Bg2 {[%clk 0:03:00]}  c5 {[%clk 0:03:02]} 5. O-O {[%clk 0:03:00]}  Nc6 {[%clk 0:03:03]} 6. c4 {[%clk 0:03:00]}  dxc4 {[%clk 0:03:02]} 7. dxc5 {[%clk 0:02:59]}  Qxd1 {[%clk 0:03:00]} 8. Rxd1 {[%clk 0:03:00]}  Bxc5 {[%clk 0:03:00]} 9. Nbd2 {[%clk 0:03:01]}  O-O {[%clk 0:02:51]} 10. Nxc4 {[%clk 0:03:00]}  b5 {[%clk 0:02:50]} 11. Nfe5 {[%clk 0:02:56]}  Nxe5 {[%clk 0:02:45]} 12. Nxe5 {[%clk 0:02:54]}  Rb8 {[%clk 0:02:44]} 13. Nc6 {[%clk 0:02:43]}  Rb6 {[%clk 0:02:43]} 14. b4 {[%clk 0:02:43]}  Rxc6 {[%clk 0:02:29]} 15. Bxc6 {[%clk 0:02:43]}  Bxb4 {[%clk 0:02:29]} 16. Rb1 {[%clk 0:02:43]}  a5 {[%clk 0:02:20]} 17. a3 {[%clk 0:02:43]}  Bc5 {[%clk 0:02:19]} 18. Rxb5 {[%clk 0:02:40]}  Ba7 {[%clk 0:02:19]} 19. Rxa5 {[%clk 0:02:39]}  Bb6 {[%clk 0:02:20]} 20. Rb5 {[%clk 0:02:32]}  Bc7 {[%clk 0:02:18]} 21. a4 {[%clk 0:02:26]}  Ba6 {[%clk 0:02:18]} 22. Rb2 {[%clk 0:02:06]}  Rc8 {[%clk 0:02:18]} 23. Bb5 {[%clk 0:02:03]}  Bb7 {[%clk 0:02:18]} 24. Bf4 {[%clk 0:01:59]}  e5 {[%clk 0:02:13]} 25. Be3 {[%clk 0:01:55]}  Ba5 {[%clk 0:02:13]} 26. Bd7 {[%clk 0:01:47]}  Rc7 {[%clk 0:02:09]} 27. Bf5 {[%clk 0:01:29]}  g6 {[%clk 0:02:09]} 28. Bb1 {[%clk 0:01:26]}  Ng4 {[%clk 0:02:05]} 29. Bb6 {[%clk 0:01:24]}  Bxb6 {[%clk 0:01:59]} 30. Rxb6 {[%clk 0:01:24]}  Bc6 {[%clk 0:01:59]} 31. a5 {[%clk 0:01:23]}  Ba4 {[%clk 0:01:57]} 32. Re1 {[%clk 0:01:15]}  Ra7 {[%clk 0:01:56]} 33. a6 {[%clk 0:01:08]}  Kg7 {[%clk 0:01:52]} 34. Rb4 {[%clk 0:01:06]}  Bd7 {[%clk 0:01:51]} 35. Rb7 {[%clk 0:01:06]}  Rxb7 {[%clk 0:01:49]} 36. axb7 {[%clk 0:01:07]} 1-0


[Site "https://www.chess.com"]

[Event "Titled Tuesday Blitz May 16 Late 2023"]
[White "Tomaszewski, Kacper"]
[Black "Cooklev, Steven"]
[WhiteFideId "1127373"]
[BlackFideId "2050552"]
[WhiteElo "2211"]
[BlackElo "2298"]
[Result "1-0"]
[Round "08"]
[TimeControl "180+2"]
[Date "2023.05.16"]
[WhiteClock "0:00:05"]
[BlackClock "0:00:00"]

1. Nf3 {[%clk 0:03:00]}  Nf6 {[%clk 0:02:59]} 2. e3 {[%clk 0:03:00]}  d5 {[%clk 0:02:58]} 3. b3 {[%clk 0:02:59]}  g6 {[%clk 0:02:57]} 4. Bb2 {[%clk 0:02:57]}  Bg7 {[%clk 0:02:57]} 5. c4 {[%clk 0:02:55]}  c6 {[%clk 0:02:57]} 6. Be2 {[%clk 0:02:52]}  O-O {[%clk 0:02:56]} 7. O-O {[%clk 0:02:53]}  Na6 {[%clk 0:02:51]} 8. d4 {[%clk 0:02:48]}  Bg4 {[%clk 0:02:49]} 9. Nbd2 {[%clk 0:02:47]}  Rc8 {[%clk 0:02:42]} 10. h3 {[%clk 0:02:47]}  Bxf3 {[%clk 0:02:42]} 11. Nxf3 {[%clk 0:02:45]}  Ne4 {[%clk 0:02:41]} 12. Rc1 {[%clk 0:02:43]}  e6 {[%clk 0:02:39]} 13. Ba3 {[%clk 0:02:37]}  Re8 {[%clk 0:02:38]} 14. Nd2 {[%clk 0:02:33]}  Qa5 {[%clk 0:02:32]} 15. Nb1 {[%clk 0:02:13]}  Nb4 {[%clk 0:01:56]} 16. Qe1 {[%clk 0:02:03]}  c5 {[%clk 0:01:30]} 17. cxd5 {[%clk 0:01:46]}  exd5 {[%clk 0:01:16]} 18. dxc5 {[%clk 0:01:39]}  Nc6 {[%clk 0:01:16]} 19. b4 {[%clk 0:01:25]}  Qd8 {[%clk 0:01:09]} 20. b5 {[%clk 0:01:17]}  Ne5 {[%clk 0:01:06]} 21. Bb4 {[%clk 0:01:09]}  d4 {[%clk 0:00:56]} 22. exd4 {[%clk 0:00:46]}  Qxd4 {[%clk 0:00:55]} 23. a3 {[%clk 0:00:13]}  Nd3 {[%clk 0:00:37]} 24. Bxd3 {[%clk 0:00:13]}  Qxd3 {[%clk 0:00:37]} 25. Qd1 {[%clk 0:00:11]}  Qxb5 {[%clk 0:00:36]} 26. Qf3 {[%clk 0:00:05]}  Bd4 {[%clk 0:00:19]} 27. Nc3 {[%clk 0:00:04]}  Nxc3 {[%clk 0:00:18]} 28. Bxc3 {[%clk 0:00:05]}  Bxc3 {[%clk 0:00:15]} 29. Qxc3 {[%clk 0:00:06]}  Re6 {[%clk 0:00:10]} 30. Rb1 {[%clk 0:00:06]}  Qxc5 {[%clk 0:00:10]} 31. Qxc5 {[%clk 0:00:06]}  Rxc5 {[%clk 0:00:11]} 32. Rxb7 {[%clk 0:00:07]}  Ra5 {[%clk 0:00:11]} 33. Rc1 {[%clk 0:00:05]}  Rxa3 {[%clk 0:00:11]} 34. Rc8+ {[%clk 0:00:05]}  Kg7 {[%clk 0:00:11]} 35. Rcc7 {[%clk 0:00:06]}  Rf6 {[%clk 0:00:10]} 36. Rxa7 {[%clk 0:00:06]}  Rxa7 {[%clk 0:00:10]} 37. Rxa7 {[%clk 0:00:07]}  h5 {[%clk 0:00:10]} 38. Ra2 {[%clk 0:00:07]}  Rf5 {[%clk 0:00:09]} 39. Kh2 {[%clk 0:00:08]}  g5 {[%clk 0:00:09]} 40. Kg3 {[%clk 0:00:08]}  Kg6 {[%clk 0:00:07]} 41. Ra6+ {[%clk 0:00:06]}  f6 {[%clk 0:00:07]} 42. Ra2 {[%clk 0:00:06]}  h4+ {[%clk 0:00:05]} 43. Kh2 {[%clk 0:00:07]}  Rf4 {[%clk 0:00:04]} 44. g3 {[%clk 0:00:07]}  hxg3+ {[%clk 0:00:04]} 45. Kxg3 {[%clk 0:00:05]}  Rd4 {[%clk 0:00:03]} 46. Ra6 {[%clk 0:00:05]}  Rb4 {[%clk 0:00:03]} 47. f3 {[%clk 0:00:05]}  Rd4 {[%clk 0:00:02]} 48. Ra8 {[%clk 0:00:05]}  Rb4 {[%clk 0:00:02]} 49. Re8 {[%clk 0:00:05]}  Rd4 {[%clk 0:00:00]} 50. Re4 {[%clk 0:00:05]} 1-0


[Site "https://www.chess.com"]

[Event "Titled Tuesday Blitz May 16 Late 2023"]
[White "Magallanes, Rey Jomar"]
[Black "Shapiro, Viktor"]
[WhiteFideId "5205948"]
[BlackFideId "4175700"]
[WhiteElo "2283"]
[BlackElo "2152"]
[Result "0-1"]
[Round "08"]
[TimeControl "180+2"]
[Date "2023.05.16"]
[WhiteClock "0:00:59"]
[BlackClock "0:00:22"]

1. e4 {[%clk 0:03:00]}  c5 {[%clk 0:02:58]} 2. Nf3 {[%clk 0:03:00]}  d6 {[%clk 0:02:58]} 3. d4 {[%clk 0:03:00]}  cxd4 {[%clk 0:02:59]} 4. Nxd4 {[%clk 0:03:01]}  Nf6 {[%clk 0:03:00]} 5. Nc3 {[%clk 0:03:01]}  a6 {[%clk 0:03:01]} 6. Be2 {[%clk 0:03:00]}  e5 {[%clk 0:03:01]} 7. Nb3 {[%clk 0:03:01]}  Be6 {[%clk 0:03:01]} 8. O-O {[%clk 0:03:01]}  Nbd7 {[%clk 0:03:01]} 9. Qd3 {[%clk 0:03:01]}  Qc7 {[%clk 0:03:00]} 10. Bd2 {[%clk 0:03:00]}  Rc8 {[%clk 0:02:55]} 11. Rac1 {[%clk 0:02:59]}  b5 {[%clk 0:02:55]} 12. Nd5 {[%clk 0:02:59]}  Bxd5 {[%clk 0:02:48]} 13. exd5 {[%clk 0:03:00]}  Be7 {[%clk 0:02:41]} 14. Na5 {[%clk 0:02:58]}  Nc5 {[%clk 0:02:40]} 15. Qe3 {[%clk 0:02:52]}  Nxd5 {[%clk 0:02:40]} 16. Qf3 {[%clk 0:02:47]}  Nf6 {[%clk 0:02:37]} 17. c4 {[%clk 0:02:45]}  b4 {[%clk 0:02:08]} 18. Bxb4 {[%clk 0:02:42]}  O-O {[%clk 0:02:08]} 19. Bc3 {[%clk 0:02:39]}  Nce4 {[%clk 0:02:05]} 20. Be1 {[%clk 0:02:35]}  Qb6 {[%clk 0:01:57]} 21. b4 {[%clk 0:02:32]}  d5 {[%clk 0:01:39]} 22. c5 {[%clk 0:02:29]}  Qa7 {[%clk 0:01:37]} 23. Qd3 {[%clk 0:02:21]}  Rfd8 {[%clk 0:01:01]} 24. f3 {[%clk 0:02:18]}  Ng5 {[%clk 0:00:58]} 25. Bf2 {[%clk 0:02:17]}  d4 {[%clk 0:00:49]} 26. Qxa6 {[%clk 0:02:15]}  Qc7 {[%clk 0:00:47]} 27. Qd3 {[%clk 0:02:02]}  Nd5 {[%clk 0:00:43]} 28. Nc4 {[%clk 0:01:54]}  Nxb4 {[%clk 0:00:37]} 29. Qf5 {[%clk 0:01:51]}  f6 {[%clk 0:00:34]} 30. h4 {[%clk 0:01:48]}  Nf7 {[%clk 0:00:28]} 31. a3 {[%clk 0:01:42]}  Nd5 {[%clk 0:00:24]} 32. Nb6 {[%clk 0:01:40]}  Rb8 {[%clk 0:00:15]} 33. Nxd5 {[%clk 0:01:37]}  Rxd5 {[%clk 0:00:15]} 34. Bc4 {[%clk 0:01:38]}  Rxc5 {[%clk 0:00:15]} 35. Qe6 {[%clk 0:01:33]}  Bf8 {[%clk 0:00:12]} 36. f4 {[%clk 0:01:28]}  Rb6 {[%clk 0:00:05]} 37. Qe8 {[%clk 0:01:23]}  Rbc6 {[%clk 0:00:03]} 38. Bxf7+ {[%clk 0:01:20]}  Qxf7 {[%clk 0:00:04]} 39. Qxf7+ {[%clk 0:01:16]}  Kxf7 {[%clk 0:00:04]} 40. Rxc5 {[%clk 0:01:15]}  Rxc5 {[%clk 0:00:04]} 41. fxe5 {[%clk 0:01:16]}  Rxe5 {[%clk 0:00:04]} 42. Bxd4 {[%clk 0:01:16]}  Ra5 {[%clk 0:00:04]} 43. Bb2 {[%clk 0:01:13]}  Bxa3 {[%clk 0:00:04]} 44. Bxa3 {[%clk 0:01:12]}  Rxa3 {[%clk 0:00:04]} 45. Rd1 {[%clk 0:01:13]}  Ra5 {[%clk 0:00:04]} 46. Rd7+ {[%clk 0:01:12]}  Kg6 {[%clk 0:00:05]} 47. Kf2 {[%clk 0:01:11]}  h5 {[%clk 0:00:05]} 48. Kf3 {[%clk 0:01:08]}  Ra4 {[%clk 0:00:06]} 49. g3 {[%clk 0:01:07]}  Ra3+ {[%clk 0:00:06]} 50. Kf4 {[%clk 0:01:06]}  Ra4+ {[%clk 0:00:06]} 51. Kf3 {[%clk 0:01:06]}  Kh6 {[%clk 0:00:07]} 52. Rd6 {[%clk 0:01:04]}  Ra3+ {[%clk 0:00:07]} 53. Kf4 {[%clk 0:01:00]}  Ra5 {[%clk 0:00:07]} 54. Kf3 {[%clk 0:00:59]}  Re5 {[%clk 0:00:07]} 55. g4 {[%clk 0:00:56]}  hxg4+ {[%clk 0:00:07]} 56. Kxg4 {[%clk 0:00:57]}  Re4+ {[%clk 0:00:08]} 57. Kg3 {[%clk 0:00:55]}  Kg6 {[%clk 0:00:08]} 58. Rd7 {[%clk 0:00:54]}  Rb4 {[%clk 0:00:07]} 59. h5+ {[%clk 0:00:54]}  Kh6 {[%clk 0:00:07]} 60. Re7 {[%clk 0:00:52]}  Rb5 {[%clk 0:00:07]} 61. Kg4 {[%clk 0:00:50]}  Rg5+ {[%clk 0:00:07]} 62. Kf4 {[%clk 0:00:50]}  Rxh5 {[%clk 0:00:08]} 63. Re8 {[%clk 0:00:48]}  Ra5 {[%clk 0:00:08]} 64. Rh8+ {[%clk 0:00:48]}  Kg6 {[%clk 0:00:09]} 65. Rh1 {[%clk 0:00:48]}  Ra4+ {[%clk 0:00:09]} 66. Kf3 {[%clk 0:00:48]}  Kf7 {[%clk 0:00:09]} 67. Rh7 {[%clk 0:00:48]}  Kg8 {[%clk 0:00:09]} 68. Rh1 {[%clk 0:00:47]}  g5 {[%clk 0:00:10]} 69. Rh6 {[%clk 0:00:46]}  Kg7 {[%clk 0:00:10]} 70. Rh1 {[%clk 0:00:47]}  Kg6 {[%clk 0:00:11]} 71. Rg1 {[%clk 0:00:47]}  f5 {[%clk 0:00:11]} 72. Kg3 {[%clk 0:00:47]}  Ra3+ {[%clk 0:00:11]} 73. Kh2 {[%clk 0:00:47]}  g4 {[%clk 0:00:12]} 74. Rg3 {[%clk 0:00:46]}  Rxg3 {[%clk 0:00:11]} 75. Kxg3 {[%clk 0:00:47]}  Kg5 {[%clk 0:00:12]} 76. Kg2 {[%clk 0:00:48]}  f4 {[%clk 0:00:12]} 77. Kg1 {[%clk 0:00:49]}  Kh4 {[%clk 0:00:13]} 78. Kf1 {[%clk 0:00:50]}  Kh3 {[%clk 0:00:13]} 79. Kg1 {[%clk 0:00:50]}  f3 {[%clk 0:00:14]} 80. Kh1 {[%clk 0:00:49]}  g3 {[%clk 0:00:14]} 81. Kg1 {[%clk 0:00:50]}  g2 {[%clk 0:00:14]} 82. Kf2 {[%clk 0:00:49]}  Kh2 {[%clk 0:00:15]} 83. Kxf3 {[%clk 0:00:50]}  g1=Q {[%clk 0:00:16]} 84. Ke4 {[%clk 0:00:51]}  Qf2 {[%clk 0:00:16]} 85. Kd5 {[%clk 0:00:52]}  Qe3 {[%clk 0:00:16]} 86. Kc6 {[%clk 0:00:53]}  Qd4 {[%clk 0:00:17]} 87. Kb5 {[%clk 0:00:54]}  Qc3 {[%clk 0:00:17]} 88. Kb6 {[%clk 0:00:53]}  Qc4 {[%clk 0:00:18]} 89. Kb7 {[%clk 0:00:54]}  Qc5 {[%clk 0:00:18]} 90. Kb8 {[%clk 0:00:55]}  Qe7 {[%clk 0:00:18]} 91. Kc8 {[%clk 0:00:55]}  Kg3 {[%clk 0:00:19]} 92. Kb8 {[%clk 0:00:56]}  Kf4 {[%clk 0:00:20]} 93. Ka8 {[%clk 0:00:57]}  Ke5 {[%clk 0:00:20]} 94. Kb8 {[%clk 0:00:57]}  Kd5 {[%clk 0:00:21]} 95. Kc8 {[%clk 0:00:58]}  Kc6 {[%clk 0:00:22]} 96. Kb8 {[%clk 0:00:59]}  Qb7# {[%clk 0:00:22]} 0-1


[Site "https://www.chess.com"]

[Event "Titled Tuesday Blitz May 16 Late 2023"]
[White "Womacka, Mathias"]
[Black "Florianovitz, Derlei Alex"]
[WhiteFideId "4611390"]
[BlackFideId "2114178"]
[WhiteElo "2377"]
[BlackElo "1953"]
[Result "1-0"]
[Round "08"]
[TimeControl "180+2"]
[Date "2023.05.16"]
[WhiteClock "0:00:08"]
[BlackClock "0:00:04"]

1. e4 {[%clk 0:03:00]}  e6 {[%clk 0:02:59]} 2. d4 {[%clk 0:02:59]}  d5 {[%clk 0:03:00]} 3. Nd2 {[%clk 0:02:59]}  c5 {[%clk 0:03:00]} 4. exd5 {[%clk 0:02:59]}  Qxd5 {[%clk 0:03:01]} 5. Ngf3 {[%clk 0:02:58]}  cxd4 {[%clk 0:03:01]} 6. Bc4 {[%clk 0:02:58]}  Qd7 {[%clk 0:03:02]} 7. O-O {[%clk 0:02:55]}  Nc6 {[%clk 0:03:02]} 8. Nb3 {[%clk 0:02:55]}  a6 {[%clk 0:03:03]} 9. Nbxd4 {[%clk 0:02:54]}  Nxd4 {[%clk 0:03:04]} 10. Nxd4 {[%clk 0:02:54]}  Qc7 {[%clk 0:03:04]} 11. Bb3 {[%clk 0:02:51]}  Bd6 {[%clk 0:03:05]} 12. h3 {[%clk 0:02:37]}  Bd7 {[%clk 0:03:01]} 13. Qf3 {[%clk 0:02:22]}  Nf6 {[%clk 0:02:56]} 14. Bg5 {[%clk 0:02:22]}  Bh2+ {[%clk 0:02:55]} 15. Kh1 {[%clk 0:02:20]}  Be5 {[%clk 0:02:56]} 16. Rad1 {[%clk 0:02:20]}  O-O-O {[%clk 0:02:56]} 17. Rfe1 {[%clk 0:02:16]}  h6 {[%clk 0:02:55]} 18. Bc1 {[%clk 0:02:02]}  Bxd4 {[%clk 0:02:47]} 19. Rxd4 {[%clk 0:02:01]}  Bc6 {[%clk 0:02:48]} 20. Rxd8+ {[%clk 0:01:48]}  Rxd8 {[%clk 0:02:46]} 21. Qf4 {[%clk 0:01:48]}  Qxf4 {[%clk 0:02:37]} 22. Bxf4 {[%clk 0:01:49]}  Nd5 {[%clk 0:02:31]} 23. Bc1 {[%clk 0:01:41]}  Ne7 {[%clk 0:02:02]} 24. c3 {[%clk 0:01:38]}  Nf5 {[%clk 0:02:00]} 25. Kg1 {[%clk 0:01:36]}  Nh4 {[%clk 0:01:56]} 26. f3 {[%clk 0:01:34]}  b5 {[%clk 0:01:41]} 27. Kf2 {[%clk 0:01:32]}  Bd5 {[%clk 0:01:36]} 28. Bf4 {[%clk 0:01:01]}  Nf5 {[%clk 0:01:30]} 29. Bc2 {[%clk 0:00:56]}  Ne7 {[%clk 0:01:29]} 30. a3 {[%clk 0:00:51]}  Kb7 {[%clk 0:01:29]} 31. Rd1 {[%clk 0:00:50]}  Nc6 {[%clk 0:01:22]} 32. h4 {[%clk 0:00:49]}  Bc4 {[%clk 0:01:14]} 33. Rxd8 {[%clk 0:00:44]}  Nxd8 {[%clk 0:01:15]} 34. h5 {[%clk 0:00:44]}  f6 {[%clk 0:01:11]} 35. Bd6 {[%clk 0:00:37]}  e5 {[%clk 0:00:56]} 36. Bf5 {[%clk 0:00:36]}  Be6 {[%clk 0:00:56]} 37. Be4+ {[%clk 0:00:32]}  Kc8 {[%clk 0:00:53]} 38. Bf8 {[%clk 0:00:33]}  f5 {[%clk 0:00:51]} 39. Bc2 {[%clk 0:00:30]}  Nf7 {[%clk 0:00:33]} 40. Bxg7 {[%clk 0:00:29]}  Kd7 {[%clk 0:00:31]} 41. Bf6 {[%clk 0:00:21]}  Kd6 {[%clk 0:00:29]} 42. Ke3 {[%clk 0:00:21]}  Bd7 {[%clk 0:00:18]} 43. Bb3 {[%clk 0:00:19]}  Be6 {[%clk 0:00:18]} 44. Bc2 {[%clk 0:00:19]}  Bd7 {[%clk 0:00:19]} 45. g3 {[%clk 0:00:16]}  Ke6 {[%clk 0:00:19]} 46. Bg7 {[%clk 0:00:15]}  Ke7 {[%clk 0:00:15]} 47. Bb3 {[%clk 0:00:13]}  Be6 {[%clk 0:00:16]} 48. Bd1 {[%clk 0:00:14]}  Bd7 {[%clk 0:00:14]} 49. Be2 {[%clk 0:00:14]}  Be6 {[%clk 0:00:14]} 50. a4 {[%clk 0:00:13]}  Bd7 {[%clk 0:00:14]} 51. axb5 {[%clk 0:00:12]}  axb5 {[%clk 0:00:15]} 52. b3 {[%clk 0:00:10]}  Ke6 {[%clk 0:00:12]} 53. c4 {[%clk 0:00:10]}  b4 {[%clk 0:00:04]} 54. Bf8 {[%clk 0:00:09]}  Nd6 {[%clk 0:00:02]} 55. Bd3 {[%clk 0:00:06]}  e4 {[%clk 0:00:02]} 56. fxe4 {[%clk 0:00:06]}  fxe4 {[%clk 0:00:03]} 57. Bxe4 {[%clk 0:00:05]}  Nxe4 {[%clk 0:00:02]} 58. Kxe4 {[%clk 0:00:06]}  Be8 {[%clk 0:00:01]} 59. g4 {[%clk 0:00:05]}  Bxh5 {[%clk 0:00:02]} 60. gxh5 {[%clk 0:00:05]}  Kf7 {[%clk 0:00:02]} 61. Bxh6 {[%clk 0:00:05]}  Kf6 {[%clk 0:00:03]} 62. Bd2 {[%clk 0:00:05]}  Kg7 {[%clk 0:00:03]} 63. Bxb4 {[%clk 0:00:06]}  Kh6 {[%clk 0:00:03]} 64. Bc3 {[%clk 0:00:07]}  Kxh5 {[%clk 0:00:04]} 65. b4 {[%clk 0:00:07]}  Kg6 {[%clk 0:00:05]} 66. b5 {[%clk 0:00:08]}  Kf7 {[%clk 0:00:06]} 67. b6 {[%clk 0:00:09]}  Ke8 {[%clk 0:00:06]} 68. b7 {[%clk 0:00:10]}  Kd7 {[%clk 0:00:07]} 69. b8=Q {[%clk 0:00:09]}  Kc6 {[%clk 0:00:04]} 70. Qb5+ {[%clk 0:00:08]} 1-0


[Site "https://www.chess.com"]

[Event "Titled Tuesday Blitz May 16 Late 2023"]
[White "Pein, Jonathan"]
[Black "Martinez, Ayelen"]
[WhiteFideId "417092"]
[BlackFideId "118702"]
[WhiteElo "2151"]
[BlackElo "2125"]
[Result "0-1"]
[Round "08"]
[TimeControl "180+2"]
[Date "2023.05.16"]
[WhiteClock "0:00:11"]
[BlackClock "0:00:17"]

1. e4 {[%clk 0:02:57]}  c5 {[%clk 0:02:59]} 2. g3 {[%clk 0:02:58]}  d6 {[%clk 0:02:59]} 3. Bg2 {[%clk 0:02:58]}  g6 {[%clk 0:02:59]} 4. Ne2 {[%clk 0:02:59]}  Bg7 {[%clk 0:03:00]} 5. c3 {[%clk 0:03:00]}  Nc6 {[%clk 0:02:57]} 6. d4 {[%clk 0:03:00]}  cxd4 {[%clk 0:02:49]} 7. cxd4 {[%clk 0:03:01]}  Bg4 {[%clk 0:02:50]} 8. f3 {[%clk 0:02:54]}  Bd7 {[%clk 0:02:49]} 9. Nbc3 {[%clk 0:02:53]}  h5 {[%clk 0:02:41]} 10. h3 {[%clk 0:02:47]}  h4 {[%clk 0:02:34]} 11. g4 {[%clk 0:02:45]}  Rc8 {[%clk 0:02:23]} 12. Be3 {[%clk 0:02:45]}  Qa5 {[%clk 0:02:12]} 13. Qd2 {[%clk 0:02:40]}  b5 {[%clk 0:02:09]} 14. b3 {[%clk 0:02:38]}  b4 {[%clk 0:02:05]} 15. Nd5 {[%clk 0:02:28]}  e6 {[%clk 0:02:04]} 16. Ndf4 {[%clk 0:02:28]}  Nge7 {[%clk 0:01:50]} 17. O-O {[%clk 0:02:28]}  e5 {[%clk 0:01:38]} 18. Nd3 {[%clk 0:01:55]}  Nxd4 {[%clk 0:01:31]} 19. Nxd4 {[%clk 0:01:55]}  exd4 {[%clk 0:01:31]} 20. Bg5 {[%clk 0:01:50]}  Rc3 {[%clk 0:01:28]} 21. Rfd1 {[%clk 0:01:26]}  Rxd3 {[%clk 0:01:22]} 22. Qxd3 {[%clk 0:01:23]}  Qxg5 {[%clk 0:01:22]} 23. Rac1 {[%clk 0:01:03]}  Be5 {[%clk 0:01:02]} 24. Rc7 {[%clk 0:00:55]}  Bf4 {[%clk 0:00:42]} 25. Rxa7 {[%clk 0:00:49]}  Bb5 {[%clk 0:00:32]} 26. Qc2 {[%clk 0:00:33]}  O-O {[%clk 0:00:26]} 27. Rb7 {[%clk 0:00:21]}  Rc8 {[%clk 0:00:21]} 28. Qb2 {[%clk 0:00:14]}  Be3+ {[%clk 0:00:20]} 29. Kh1 {[%clk 0:00:14]}  d3 {[%clk 0:00:17]} 30. a4 {[%clk 0:00:11]}  Bc6 {[%clk 0:00:15]} 31. Rxe7 {[%clk 0:00:08]}  Qxe7 {[%clk 0:00:15]} 32. Rxd3 {[%clk 0:00:09]}  Bf4 {[%clk 0:00:14]} 33. a5 {[%clk 0:00:04]}  Bb5 {[%clk 0:00:14]} 34. Rd5 {[%clk 0:00:05]}  Rc1+ {[%clk 0:00:13]} 35. Bf1 {[%clk 0:00:03]}  Rxf1+ {[%clk 0:00:13]} 36. Kg2 {[%clk 0:00:04]}  Rc1 {[%clk 0:00:13]} 37. Rxb5 {[%clk 0:00:04]}  Qc7 {[%clk 0:00:13]} 38. Rd5 {[%clk 0:00:03]}  Rc2+ {[%clk 0:00:13]} 39. Rd2 {[%clk 0:00:03]}  Rxb2 {[%clk 0:00:13]} 40. Rxb2 {[%clk 0:00:04]}  Qc3 {[%clk 0:00:13]} 41. Ra2 {[%clk 0:00:05]}  Qc1 {[%clk 0:00:13]} 42. a6 {[%clk 0:00:04]}  Be3 {[%clk 0:00:11]} 43. f4 {[%clk 0:00:02]}  Qg1+ {[%clk 0:00:09]} 44. Kf3 {[%clk 0:00:03]}  Qg3+ {[%clk 0:00:10]} 45. Ke2 {[%clk 0:00:04]}  Qg2+ {[%clk 0:00:10]} 46. Kxe3 {[%clk 0:00:04]}  Qxa2 {[%clk 0:00:11]} 47. e5 {[%clk 0:00:05]}  Qxa6 {[%clk 0:00:12]} 48. exd6 {[%clk 0:00:06]}  Qxd6 {[%clk 0:00:12]} 49. Ke4 {[%clk 0:00:07]}  Qc5 {[%clk 0:00:13]} 50. f5 {[%clk 0:00:08]}  gxf5+ {[%clk 0:00:13]} 51. Kf4 {[%clk 0:00:08]}  Kg7 {[%clk 0:00:14]} 52. gxf5 {[%clk 0:00:09]}  Kf6 {[%clk 0:00:15]} 53. Kg4 {[%clk 0:00:10]}  Qxf5+ {[%clk 0:00:16]} 54. Kxh4 {[%clk 0:00:10]}  Qf4+ {[%clk 0:00:16]} 55. Kh5 {[%clk 0:00:11]}  Qg5# {[%clk 0:00:17]} 0-1


[Site "https://www.chess.com"]